bitfinex/quotes_ETHUSD_20250426
["timestamp","ask_amount","ask_price","bid_price","bid_amount"]
[1745632427030,4.855,1806.7,1806.5,5.53545368]
[1745632427341,4.855,1806.7,1806.4,5.94370705]
[1745632427663,4.855,1806.7,1806.4,11.47936694]
[1745632428237,4.855,1806.7,1806.4,5.94362069]
[1745632432358,6.4474571,1806.7,1806.4,5.94362069]
[1745632434174,4.855,1806.7,1806.5,5.53545985]
[1745632435474,4.855,1806.7,1806.5,5.53544993]
[1745632436872,4.855,1806.7,1806.6,5.5352596]
[1745632445684,4.789,1807.0,1806.9,5.53417571]
[1745632448687,4.789,1807.3,1807.2,5.53324203]
[1745632448888,16.604,1807.4,1807.3,5.53311569]
[1745632449085,21.393,1807.4,1807.3,5.53311569]
[1745632449285,4.789,1807.4,1807.3,5.53311569]
[1745632449868,0.7864,1807.8,1807.6,5.53199679]
[1745632450073,0.7864,1807.8,1807.1,0.7912]
[1745632450074,0.7864,1807.6,1807.1,5.53354182]
[1745632450276,0.7864,1807.4,1807.1,5.53370576]
[1745632450904,0.61909983,1807.5,1806.9,5.53422877]
[1745632450905,10.32227968,1807.3,1806.9,5.53422877]
[1745632451104,10.32227968,1807.3,1806.7,0.7912]
[1745632451105,0.7864,1807.1,1806.8,5.53463241]
[1745632451293,0.7864,1807.1,1806.7,5.53467944]
[1745632451601,0.7864,1807.1,1806.8,5.53454193]
[1745632451807,0.7864,1807.1,1806.8,5.53438276]
[1745632459187,0.7864,1807.1,1806.7,5.53492698]
[1745632459576,6.32017857,1807.1,1806.7,5.53492698]
[1745632459776,7.6087689,1807.1,1806.7,5.53492698]
[1745632460075,5.53403566,1807.0,1806.6,5.53518632]
[1745632460674,4.789,1806.9,1806.6,5.53518632]
[1745632461416,4.789,1806.9,1806.5,5.82387762]
[1745632461631,0.7848,1806.8,1806.5,5.82387762]
[1745632461798,7.43036543,1806.8,1806.5,0.28848527]
[1745632462715,1.89563521,1806.8,1806.5,0.28848527]
[1745632463220,1.89563521,1806.8,1806.5,5.82403926]
[1745632463916,0.7848,1806.8,1806.5,5.82403926]
[1745632464418,10.94262657,1806.9,1806.1,0.1]
[1745632464419,0.7901,1806.5,1806.1,0.1]
[1745632464603,6.32658543,1806.2,1806.1,0.1]
[1745632472884,9.33078543,1806.2,1806.1,0.1]
[1745632473098,11.53147385,1806.2,1806.1,0.1]
[1745632477330,11.53147385,1806.2,1806.1,1e-08]
[1745632477490,11.53147385,1806.2,1805.1,0.1]
[1745632477491,5.53916782,1805.4,1805.1,0.1]
[1745632477690,5.5395524,1805.2,1805.1,0.1]
[1745632477902,6.57250764,1805.2,1805.1,0.1]
[1745632480419,7.35440764,1805.2,1805.1,0.1]
[1745632482537,10.35440764,1805.2,1805.1,0.1]
[1745632483752,10.76359145,1805.2,1805.1,0.1]
[1745632489862,10.35440764,1805.2,1805.1,0.1]
[1745632490066,8.5395524,1805.2,1805.1,0.1]
[1745632491978,9.3574524,1805.2,1805.1,0.1]
[1745632495981,8.5395524,1805.2,1805.1,0.1]
[1745632496288,9.15865223,1805.2,1805.1,0.1]
[1745632499885,3.61909983,1805.2,1805.1,0.1]
[1745632500481,4.79,1805.3,1805.1,0.1]
[1745632500838,4.79,1805.3,1805.1,5.63970468]
[1745632501468,4.79,1805.3,1805.1,0.1]
[1745632501664,10.32925144,1805.3,1805.1,0.1]
[1745632501877,5.40909983,1805.3,1805.1,0.1]
[1745632504180,4.79,1805.3,1805.2,5.5395524]
[1745632504384,4.79,1805.3,1805.2,6.3155524]
[1745632507930,4.79,1805.3,1805.2,6.3155524]
[1745632512821,4.79,1805.3,1805.2,7.51109324]
[1745632513750,4.79,1805.3,1805.2,8.06479324]
[1745632517643,21.429,1805.7,1805.6,6.35092521]
[1745632518167,4.81,1805.7,1805.6,6.35092521]
[1745632518369,4.81,1805.7,1805.6,0.8126]
[1745632518675,5.42909983,1805.7,1805.3,6.09292342]
[1745632518965,5.5384359,1805.6,1805.3,0.5537]
[1745632519134,5.5384359,1805.6,1805.2,6.35198323]
[1745632519336,5.5384359,1805.6,1805.2,0.8126]
[1745632519642,0.7706,1805.5,1805.1,5.63965712]
[1745632520061,5.53907227,1805.4,1805.1,0.1]
[1745632520246,4.81,1805.3,1805.1,0.1]
[1745632521286,10.3493375,1805.3,1805.1,0.1]
[1745632521786,6.3101524,1805.2,1805.1,0.1]
[1745632524807,0.7706,1805.2,1805.1,0.1]
[1745632524955,10.96836538,1805.3,1805.1,0.1]
[1745632525291,5.5395524,1805.2,1805.1,0.1]
[1745632527304,7.22173425,1805.3,1805.1,0.1]
[1745632527457,10.96838971,1805.3,1805.1,0.1]
[1745632527960,5.42909983,1805.3,1805.1,0.1]
[1745632528488,10.96837643,1805.3,1805.1,0.1]
[1745632528880,16.50788566,1805.3,1805.1,0.1]
[1745632529076,10.96837643,1805.3,1805.1,0.1]
[1745632529295,6.63639004,1805.2,1805.1,0.1]
[1745632530697,1.09683764,1805.2,1805.1,0.1]
[1745632530993,6.63639004,1805.2,1805.1,0.1]
[1745632531604,1.09683764,1805.2,1805.1,0.1]
[1745632531790,10.96851706,1805.3,1805.1,0.1]
[1745632532091,5.5395524,1805.2,1805.1,0.1]
[1745632532791,5.42909983,1805.3,1805.1,0.1]
[1745632532999,10.96850565,1805.3,1805.1,0.1]
[1745632533360,5.5395524,1805.2,1805.1,0.1]
[1745632534793,7.19034534,1805.2,1805.1,0.1]
[1745632537819,10.96853997,1805.3,1805.1,0.1]
[1745632538415,10.34925329,1805.3,1805.1,0.8983]
[1745632538820,10.34925329,1805.3,1805.1,0.1]
[1745632539194,5.5395524,1805.2,1805.1,0.1]
[1745632540922,10.96862163,1805.3,1805.1,0.1]
[1745632541127,12.20738052,1805.3,1805.1,0.1]
[1745632543541,11.58828069,1805.3,1805.1,0.1]
[1745632545234,5.5395524,1805.2,1805.1,0.1]
[1745632545558,11.58822725,1805.3,1805.1,0.1]
[1745632547786,6.04875889,1805.3,1805.1,0.1]
[1745632547990,4.81,1805.3,1805.1,5.6397703]
[1745632548637,4.81,1805.3,1805.1,0.1]
[1745632551177,4.81,1805.3,1805.1,5.63977013]
[1745632551983,4.81,1805.3,1805.1,6.47202963]
[1745632553077,4.81,1805.3,1805.2,5.5395524]
[1745632553248,4.81,1805.3,1805.1,6.47202963]
[1745632554994,4.81,1805.3,1805.1,0.9324]
[1745632555156,10.83036865,1805.3,1805.1,0.1]
[1745632556488,5.291,1805.3,1805.1,0.1]
[1745632556788,11.59718572,1805.3,1805.1,0.1]
[1745632557551,5.291,1805.3,1805.1,0.1]
[1745632557786,4.81,1805.3,1805.1,0.1]
[1745632558276,10.3492544,1805.3,1805.1,0.1]
[1745632559286,4.81,1805.3,1805.1,0.1]
[1745632561959,4.81,1805.3,1805.2,0.7627]
[1745632565804,4.81,1805.3,1805.2,0.7627]
[1745632566295,4.81,1805.3,1805.1,5.63965033]
[1745632568875,4.81,1805.3,1805.2,5.5395524]
[1745632570704,4.81,1805.3,1805.1,5.63967956]
[1745632570998,4.81,1805.3,1805.2,5.5395524]
[1745632571208,4.81,1805.3,1805.2,6.3314524]
[1745632572403,4.792,1805.6,1805.3,5.53900441]
[1745632572798,4.792,1805.6,1805.4,5.5388304]
[1745632573171,4.792,1805.6,1805.3,5.53911443]
[1745632573903,4.792,1805.6,1805.4,5.53893536]
[1745632574066,4.792,1805.6,1805.5,6.33053195]
[1745632575973,21.41,1805.9,1805.5,0.7919]
[1745632576175,21.41,1805.9,1805.7,5.53772949]
[1745632576384,21.41,1805.9,1805.8,0.7919]
[1745632576670,21.41,1805.9,1805.8,6.32961181]
[1745632581210,21.41,1805.9,1805.8,7.51634594]
[1745632583512,21.41,1805.9,1805.8,6.32961181]
[1745632584804,0.61909983,1806.4,1806.1,5.53670917]
[1745632584991,4.791,1806.3,1806.0,5.53693441]
[1745632585192,4.791,1806.3,1806.0,5.53693005]
[1745632585903,4.791,1806.3,1806.0,5.53691594]
[1745632587807,4.791,1806.3,1806.0,5.53709856]
[1745632588012,4.791,1806.3,1806.1,5.53659257]
[1745632588218,4.791,1806.3,1806.2,5.53648543]
[1745632599309,4.791,1806.3,1806.2,6.88278543]
[1745632599479,21.4,1806.6,1806.4,5.5356088]
[1745632599672,21.4,1806.6,1806.4,11.07121893]
[1745632599874,21.4,1806.6,1806.5,5.53556601]
[1745632600074,16.613,1806.6,1806.5,6.32766601]
[1745632600295,21.4,1806.6,1806.4,7.43492331]
[1745632600709,21.4,1806.6,1806.4,7.43488767]
[1745632601320,21.4,1806.6,1806.5,5.53556601]
[1745632602585,21.4,1806.6,1806.1,0.5542]
[1745632602586,6.35001607,1806.5,1806.1,0.5542]
[1745632602896,6.35001607,1806.5,1806.1,5.53677354]
[1745632602897,12.504809,1806.5,1806.1,5.53677354]
[1745632603101,6.96896897,1806.5,1806.0,6.72183491]
[1745632603409,5.53593542,1806.4,1806.0,6.72183491]
[1745632603608,6.96896897,1806.5,1806.1,6.20887841]
[1745632605716,6.96896897,1806.5,1806.2,5.53646036]
[1745632605717,1.43339983,1806.5,1806.2,5.53646036]
[1745632606310,6.96897539,1806.5,1806.1,6.20875962]
[1745632606517,6.34987556,1806.5,1806.1,6.20875962]
[1745632607031,6.34987556,1806.5,1806.1,5.53657613]
[1745632607734,5.53697968,1806.1,1805.8,0.5542]
[1745632608029,6.28766386,1806.0,1805.7,0.28853309]
[1745632608236,5.53771181,1805.8,1805.7,0.28853309]
[1745632608394,6.28821181,1805.8,1805.7,0.28853309]
[1745632609125,0.7505,1805.8,1805.7,0.28853309]
[1745632610112,6.287755,1806.0,1805.7,0.28853309]
[1745632610303,0.7505,1806.0,1805.7,0.28853309]
[1745632610623,0.7505,1806.0,1805.7,6.49213118]
[1745632610930,10.32386808,1806.1,1805.7,6.49213118]
[1745632611133,10.32386808,1806.1,1805.7,5.82639761]
[1745632611432,4.787,1806.0,1805.8,5.53769255]
[1745632611632,4.787,1806.0,1805.7,5.82635613]
[1745632612654,4.787,1806.0,1805.7,11.36413411]
[1745632612837,4.787,1806.0,1805.7,5.82631107]
[1745632613009,4.787,1806.0,1805.7,6.49201218]
[1745632613210,4.787,1806.0,1805.8,5.53767253]
[1745632613410,4.787,1806.0,1805.7,6.49202222]
[1745632613739,4.787,1806.0,1805.7,12.02980223]
[1745632613951,4.787,1806.0,1805.8,5.53769386]
[1745632614251,4.787,1806.0,1805.8,6.74048365]
[1745632615450,4.787,1806.0,1805.8,6.74044278]
[1745632617643,4.787,1806.0,1805.9,5.53740517]
[1745632618087,4.787,1806.0,1805.9,6.33100517]
[1745632619645,4.787,1806.0,1805.9,5.53740517]
[1745632619850,4.787,1806.0,1805.9,6.76521383]
[1745632621955,4.785,1806.2,1806.0,6.33065313]
[1745632622653,4.785,1806.2,1806.1,5.53679198]
[1745632623725,4.77066727,1806.2,1806.1,5.53679198]
[1745632625600,4.77066727,1806.2,1806.0,6.33051694]
[1745632625761,4.77066727,1806.2,1806.0,7.69549515]
[1745632625963,4.77066727,1806.2,1806.0,7.6954588]
[1745632626138,4.77066727,1806.2,1806.1,5.53679198]
[1745632628636,5.53546952,1806.6,1806.3,5.53604405]
[1745632628637,4.785,1806.5,1806.3,5.53604405]
[1745632630472,4.785,1806.5,1806.2,5.53632536]
[1745632630767,4.785,1806.5,1806.2,6.78049261]
[1745632630932,4.785,1806.5,1806.2,12.31674541]
[1745632631365,4.785,1806.5,1806.4,5.53587245]
[1745632631767,4.785,1806.5,1806.3,5.53597913]
[1745632632334,4.785,1806.5,1806.3,6.3504681]
[1745632632566,4.785,1806.5,1806.4,0.63504681]
[1745632632754,4.785,1806.5,1806.3,6.35056859]
[1745632633090,4.785,1806.5,1806.4,5.53587245]
[1745632633647,4.785,1806.5,1806.3,11.88652061]
[1745632634057,4.785,1806.5,1806.3,11.88642736]
[1745632634459,4.785,1806.5,1806.4,5.53587245]
[1745632634661,4.785,1806.5,1806.4,6.7245049]
[1745632637382,0.7813,1807.0,1806.6,5.53502787]
[1745632637586,4.785,1806.9,1806.6,5.5350054]
[1745632637956,4.785,1806.9,1806.7,5.53485065]
[1745632640187,4.785,1806.9,1806.6,6.33011193]
[1745632640389,4.785,1806.9,1806.6,7.51666287]
[1745632640618,4.785,1806.9,1806.6,13.05168173]
[1745632641192,4.785,1806.9,1806.6,7.5165698]
[1745632641689,4.785,1806.9,1806.7,5.53492725]
[1745632642791,4.785,1806.9,1806.7,5.52332247]
[1745632644070,4.785,1806.9,1806.6,7.51661438]
[1745632644790,4.785,1806.9,1806.6,13.05165538]
[1745632645089,4.785,1806.9,1806.7,5.53494033]
[1745632645389,4.785,1806.9,1806.6,1.98155094]
[1745632645595,4.785,1806.9,1806.6,6.33024045]
[1745632645897,4.785,1806.9,1806.6,6.33003603]
[1745632647187,4.785,1806.9,1806.7,5.53494789]
[1745632648680,4.785,1806.9,1806.6,6.33005421]
[1745632649898,4.785,1806.9,1806.7,5.53484373]
[1745632650409,4.785,1806.9,1806.6,6.33006742]
[1745632654623,4.785,1806.9,1806.6,11.8651053]
[1745632654915,4.785,1806.9,1806.7,5.53495205]
[1745632656205,4.785,1806.9,1806.7,5.53484291]
[1745632657516,4.785,1806.9,1806.7,5.53467854]
[1745632658520,4.785,1806.9,1806.8,5.53464688]
[1745632658694,4.785,1806.9,1806.7,5.53467854]
[1745632660318,4.781,1807.3,1807.1,5.53360849]
[1745632661819,4.781,1807.3,1807.1,5.53347289]
[1745632662119,4.781,1807.3,1807.2,5.53342186]
[1745632663521,4.781,1807.3,1807.0,6.3600873]
[1745632663694,4.781,1807.3,1807.1,5.53360796]
[1745632664726,5.2591,1807.3,1807.0,5.53402736]
[1745632664935,6.0101,1807.3,1807.0,5.53402736]
[1745632665690,6.0101,1807.3,1806.9,5.53417231]
[1745632665890,6.0101,1807.3,1807.0,5.53400876]
[1745632666195,6.0101,1807.3,1806.9,5.53417231]
[1745632666603,6.0101,1807.3,1807.0,5.5339884]
[1745632669460,0.8282,1807.1,1806.8,5.53453444]
[1745632670232,0.8282,1807.1,1806.9,5.53433486]
[1745632670425,0.8282,1807.1,1806.8,5.53444439]
[1745632671194,0.8282,1806.9,1806.5,5.82398653]
[1745632671405,11.77894453,1806.9,1806.5,5.82398653]
[1745632672221,11.77894453,1806.9,1806.5,5.82381896]
[1745632673121,11.77894453,1806.9,1806.5,5.8237964]
[1745632673122,6.24443848,1806.9,1806.5,5.8237964]
[1745632673327,6.24443848,1806.9,1806.6,5.53513417]
[1745632675244,5.74443848,1806.9,1806.6,5.53513417]
[1745632675623,5.74443848,1806.9,1806.5,5.823855]
[1745632675825,5.1082,1806.9,1806.5,5.823855]
[1745632676440,5.1082,1806.9,1806.6,5.53508625]
[1745632676846,5.1082,1806.9,1806.7,5.5348611]
[1745632680953,5.1082,1806.9,1806.6,5.53509139]
[1745632681529,5.1082,1806.9,1806.6,11.07010874]
[1745632681725,5.1082,1806.9,1806.6,11.07003819]
[1745632681939,5.1082,1806.9,1806.6,5.53501735]
[1745632682258,5.1082,1806.9,1806.6,11.07003944]
[1745632683254,5.1082,1806.9,1806.7,5.53490897]
[1745632685853,5.1082,1806.9,1806.7,5.53479009]
[1745632686273,4.78,1806.9,1806.7,6.64173204]
[1745632686440,4.78,1806.9,1806.8,5.53464688]
[1745632688969,4.778,1807.2,1807.0,5.53385147]
[1745632689131,4.778,1807.2,1807.0,5.53383479]
[1745632689336,4.778,1807.2,1807.1,5.53372807]
[1745632690237,4.778,1807.2,1807.1,6.64048436]
[1745632690456,4.778,1807.5,1807.4,5.53280956]
[1745632690967,4.778,1807.5,1807.1,7.46464047]
[1745632690968,4.778,1807.5,1807.1,1.93095629]
[1745632691173,4.778,1807.5,1807.3,5.53301292]
[1745632693226,0.7881,1807.4,1807.1,0.8242]
[1745632693363,0.7881,1807.4,1807.2,5.53339888]
[1745632693675,0.7881,1807.4,1807.2,5.53320032]
[1745632693878,0.7881,1807.4,1807.3,5.53311569]
[1745632694544,4.778,1807.5,1807.4,5.53280956]
[1745632695339,4.778,1807.5,1807.3,6.0862542]
[1745632695648,4.778,1807.5,1807.3,5.53294263]
[1745632696578,4.778,1807.5,1807.3,11.06585719]
[1745632696743,4.778,1807.5,1807.3,5.53291456]
[1745632696949,4.778,1807.5,1807.4,5.53280956]
[1745632697151,4.778,1807.5,1807.3,5.53291456]
[1745632697750,4.778,1807.5,1807.4,5.53280956]
[1745632701476,4.778,1807.5,1807.3,5.53291822]
[1745632701677,4.778,1807.5,1807.3,11.06582415]
[1745632701872,4.778,1807.5,1807.4,5.53280956]
[1745632702679,4.778,1807.5,1807.4,6.29600956]
[1745632703272,4.778,1807.5,1807.4,7.47890111]
[1745632704586,4.777,1807.8,1807.6,5.53189835]
[1745632704789,4.777,1807.8,1807.7,5.53189135]
[1745632705089,4.777,1807.8,1807.7,6.35639135]
[1745632706990,4.527,1807.8,1807.7,6.35639135]
[1745632707192,4.527,1807.8,1807.7,6.72072032]
[1745632708890,4.527,1807.8,1807.7,7.54522032]
[1745632711583,4.527,1807.8,1807.7,1.18882897]
[1745632711774,5.53234328,1807.6,1807.2,0.8245]
[1745632711994,0.8193,1807.7,1807.2,6.35770391]
[1745632712191,0.61909983,1807.6,1806.8,0.28840438]
[1745632712499,5.53355635,1807.2,1806.8,1.11290438]
[1745632712705,6.35319626,1807.1,1806.8,0.95317187]
[1745632712888,0.8193,1807.1,1806.8,5.82302129]
[1745632714112,0.8193,1807.1,1806.8,0.28840438]
[1745632714979,0.8193,1807.1,1806.8,5.82300309]
[1745632715184,0.8193,1807.1,1806.8,0.28840438]
[1745632715409,6.35306929,1807.1,1806.8,0.28840438]
[1745632716219,0.8193,1807.1,1806.8,0.28840438]
[1745632716511,6.35303237,1807.1,1806.8,0.28840438]
[1745632717819,2.48555814,1807.1,1806.8,0.28840438]
[1745632719718,4.776,1807.2,1807.0,6.35840391]
[1745632719898,4.776,1807.2,1807.0,0.8245]
[1745632721100,10.30947556,1807.2,1806.8,6.647413]
[1745632721396,4.776,1807.2,1806.8,6.64731383]
[1745632721624,4.776,1807.2,1806.9,5.53433437]
[1745632722115,4.776,1807.2,1806.8,6.64741336]
[1745632722417,4.776,1807.2,1806.9,5.53421834]
[1745632722717,4.776,1807.2,1806.9,11.06836134]
[1745632722907,4.776,1807.2,1806.9,5.534143]
[1745632723319,4.776,1807.2,1807.1,5.53372807]
[1745632723519,0.8193,1807.6,1807.4,5.5325941]
[1745632723724,5.5933,1807.8,1807.6,5.53196781]
[1745632724021,4.774,1807.8,1807.5,5.53238359]
[1745632724189,4.774,1807.8,1807.4,5.53267961]
[1745632724384,4.774,1807.8,1807.5,5.53233306]
[1745632725004,4.774,1807.8,1807.5,5.53230472]
[1745632726422,4.774,1807.8,1807.5,5.53237524]
[1745632726722,4.774,1807.8,1807.5,5.53222935]
[1745632726922,4.774,1807.8,1807.6,5.53214062]
[1745632727516,4.774,1807.8,1807.5,5.53232672]
[1745632727716,4.774,1807.8,1807.6,5.53211034]
[1745632728496,4.774,1807.8,1807.5,6.70238022]
[1745632728696,4.774,1807.8,1807.5,6.70253413]
[1745632729013,4.774,1807.8,1807.4,6.16834254]
[1745632729192,4.774,1807.8,1807.5,5.53247676]
[1745632730625,4.774,1807.8,1807.4,5.53262868]
[1745632730792,10.30569724,1807.8,1807.4,11.06523576]
[1745632730998,10.30569724,1807.8,1807.4,5.53260708]
[1745632731496,4.774,1807.8,1807.5,5.53232844]
[1745632731714,4.774,1807.8,1807.6,5.5320649]
[1745632731916,4.774,1807.8,1807.6,5.5320859]
[1745632735328,4.774,1807.8,1807.7,5.53189135]
[1745632736929,0.1,1807.9,1807.8,5.53158535]
[1745632744841,0.1,1807.9,1807.8,6.31888535]
[1745632745024,0.1,1807.9,1807.8,7.50396302]
[1745632745439,0.1,1807.9,1807.8,6.71666302]
[1745632746450,0.1,1807.9,1807.7,5.53189135]
[1745632747145,0.1,1807.9,1807.7,11.06354998]
[1745632747345,0.1,1807.9,1807.7,5.53165863]
[1745632747547,0.8648,1807.9,1807.5,1.6606916]
[1745632747737,0.8648,1807.9,1807.5,6.08656196]
[1745632748055,0.8648,1807.9,1807.6,5.53213867]
[1745632748354,0.8648,1807.9,1807.6,11.06412083]
[1745632748555,0.8648,1807.9,1807.7,5.53181167]
[1745632750146,0.8648,1807.9,1807.5,12.30615398]
[1745632750460,0.8648,1807.9,1807.5,6.21965183]
[1745632750763,6.39614137,1807.9,1807.5,6.21965183]
[1745632751857,6.39614137,1807.9,1807.5,11.75194627]
[1745632752360,0.8648,1807.9,1807.6,5.53213241]
[1745632753055,0.8648,1807.9,1807.6,5.53212743]
[1745632753460,0.8648,1807.9,1807.6,6.70732117]
[1745632755257,0.8648,1807.9,1807.7,5.53176298]
[1745632755558,0.8648,1807.9,1807.8,5.53158535]
[1745632756955,0.1,1807.9,1807.8,5.53158535]
[1745632764364,0.09285852,1807.9,1807.8,5.53158535]
[1745632764576,0.09285852,1807.9,1807.8,6.63793182]
[1745632766068,0.09285852,1807.9,1807.8,1.10634647]
[1745632766258,0.91845852,1807.9,1807.7,5.53177463]
[1745632766455,0.91845852,1807.9,1807.7,11.06343426]
[1745632766638,0.91845852,1807.9,1807.6,6.08610307]
[1745632766839,0.91845852,1807.9,1807.7,5.53185356]
[1745632767035,0.91845852,1807.9,1807.8,5.53158535]
[1745632767237,0.91845852,1807.9,1807.7,5.53171317]
[1745632767646,0.91845852,1807.9,1807.6,6.76987937]
[1745632767965,0.91845852,1807.9,1807.7,5.53184038]
[1745632768558,0.91845852,1807.9,1807.7,5.5316835]
[1745632768892,0.09285852,1807.9,1807.8,5.53158535]
[1745632769038,0.09285852,1807.9,1807.8,6.34228535]
[1745632769639,0.09285852,1807.9,1807.8,6.89648535]
[1745632770953,0.09285852,1807.9,1807.8,7.30456059]
[1745632772379,0.09285852,1807.9,1807.8,6.89648535]
[1745632772583,0.09285852,1807.9,1807.8,8.26336596]
[1745632772942,0.09285852,1807.9,1807.8,1.36688061]
[1745632773252,0.09285852,1807.9,1807.8,5.53158535]
[1745632774580,0.09285852,1807.9,1807.7,5.53186841]
[1745632777182,0.09285852,1807.9,1807.6,6.08617848]
[1745632777361,0.09285852,1807.9,1807.7,5.53184232]
[1745632779586,0.09285852,1807.9,1807.7,5.53165894]
[1745632779788,0.09285852,1807.9,1807.7,11.06331483]
[1745632779986,0.09285852,1807.9,1807.8,5.53158535]
[1745632780289,0.09285852,1807.9,1807.7,5.53169335]
[1745632781452,0.09285852,1807.9,1807.8,5.53158535]
[1745632782991,0.09285852,1807.9,1807.7,5.53169636]
[1745632783196,0.09285852,1807.9,1807.8,5.53158535]
[1745632786181,0.09285852,1807.9,1807.7,6.08589636]
[1745632786493,0.09285852,1807.9,1807.7,6.08589514]
[1745632786675,0.09285852,1807.9,1807.7,11.6175179]
[1745632786854,0.09285852,1807.9,1807.7,6.08585163]
[1745632787191,0.09285852,1807.9,1807.8,5.53158535]
[1745632788195,0.09285852,1807.9,1807.7,5.53172825]
[1745632789704,0.09285852,1807.9,1807.7,5.53165111]
[1745632790091,0.09285852,1807.9,1807.7,11.06330208]
[1745632790990,0.09285852,1807.9,1807.7,5.53165097]
[1745632791159,0.09285852,1807.9,1807.8,5.53158535]
[1745632794488,0.09285852,1807.9,1807.7,5.53173034]
[1745632795093,0.09285852,1807.9,1807.6,6.08622448]
[1745632795292,0.09285852,1807.9,1807.7,5.53187654]
[1745632795894,0.09285852,1807.9,1807.8,6.31318535]
[1745632796560,0.09285852,1807.9,1807.8,6.86738535]
[1745632798703,0.09285852,1807.9,1807.8,6.31318535]
[1745632799404,0.09285852,1807.9,1807.8,5.53158535]
[1745632801005,6.31285216,1807.6,1807.3,6.03]
[1745632801198,5.53251897,1807.5,1807.1,6.3118024]
[1745632801497,5.5475,1807.6,1807.2,6.16443891]
[1745632801697,5.5475,1807.6,1807.2,5.53325867]
[1745632801914,11.07971273,1807.6,1807.2,5.53325867]
[1745632802400,11.07971273,1807.6,1806.7,0.798]
[1745632802401,6.32695061,1807.3,1806.7,0.798]
[1745632802564,4.767,1807.2,1806.9,5.53413947]
[1745632802764,4.767,1807.2,1807.1,6.33172807]
[1745632803197,4.767,1807.5,1807.4,5.53280956]
[1745632803988,4.767,1807.5,1807.4,6.33080956]
[1745632806179,4.85785852,1807.9,1807.8,5.53158535]
[1745632806493,0.09285852,1807.9,1807.8,5.53158535]
[1745632806690,0.09285852,1807.9,1807.8,6.71772215]
[1745632806890,0.09285852,1807.9,1807.8,9.71772215]
[1745632807203,0.09285852,1807.9,1807.8,10.27192215]
[1745632807627,0.09285852,1807.9,1807.8,7.27192215]
[1745632808411,0.09285852,1807.9,1807.8,6.71772215]
[1745632808716,0.09285852,1807.9,1807.8,5.53158535]
[1745632810033,4.765,1808.2,1808.1,5.53066755]
[1745632811329,22.1367,1808.5,1808.4,5.52975005]
[1745632811529,4.764,1808.5,1808.4,5.52975005]
[1745632812728,4.764,1808.8,1808.7,5.52874838]
[1745632813426,5.6722,1808.9,1808.7,5.52863903]
[1745632813597,5.6722,1808.9,1808.7,11.05726459]
[1745632813802,4.864,1808.9,1808.8,5.5285272]
[1745632814002,4.764,1809.1,1809.0,5.52791597]
[1745632814413,0.61909983,1809.5,1809.4,5.52656334]
[1745632814414,4.764,1809.5,1809.4,5.52656334]
[1745632814618,4.764,1809.5,1809.3,5.52684978]
[1745632814933,4.764,1809.5,1809.3,5.5269165]
[1745632815114,4.764,1809.5,1809.2,5.52712794]
[1745632815326,1.10983129,1809.5,1809.2,5.52712794]
[1745632815839,0.8082,1809.6,1809.4,5.52657247]
[1745632816229,0.8082,1809.6,1809.3,5.52682419]
[1745632817141,0.8082,1809.6,1809.2,5.52712488]
[1745632818225,0.8082,1809.6,1809.2,11.05419625]
[1745632818438,0.8082,1809.6,1809.2,5.52707137]
[1745632818937,0.8082,1809.6,1809.3,5.52693077]
[1745632819450,0.8082,1809.6,1808.9,0.795]
[1745632819597,0.8082,1809.0,1808.6,5.52888379]
[1745632819797,0.8082,1809.0,1808.5,6.03]
[1745632819798,6.33630138,1809.0,1808.5,6.32429538]
[1745632820001,5.5284124,1808.9,1808.4,6.6355388]
[1745632820230,0.8082,1809.0,1808.4,6.6355388]
[1745632820426,5.52884209,1808.7,1808.3,5.5299034]
[1745632820624,0.61909983,1808.9,1808.3,5.5299034]
[1745632820625,5.5487,1808.6,1808.3,5.5299034]
[1745632820827,5.5487,1808.6,1808.4,5.52973072]
[1745632821466,4.762,1808.6,1808.4,5.5295811]
[1745632821972,4.762,1808.6,1808.5,6.30724429]
[1745632822135,4.762,1808.9,1808.7,5.52875938]
[1745632822480,4.762,1808.9,1808.7,5.5286158]
[1745632822699,4.762,1808.9,1808.6,5.52894922]
[1745632823178,4.762,1808.9,1808.7,5.52881372]
[1745632823573,4.762,1808.9,1808.6,5.52905423]
[1745632823878,4.762,1808.9,1808.3,8.53001493]
[1745632823879,0.7867,1808.8,1808.3,5.52985588]
[1745632824175,6.3153826,1808.8,1808.4,5.52968349]
[1745632824478,0.7867,1808.8,1808.5,5.52942031]
[1745632824887,0.7867,1808.8,1808.5,5.52926087]
[1745632825178,6.31523462,1808.8,1808.4,5.52959705]
[1745632825376,6.31523462,1808.8,1808.4,6.63554739]
[1745632825583,6.31523462,1808.8,1808.4,5.52959705]
[1745632826174,0.7867,1808.8,1808.5,5.52940422]
[1745632826470,0.7867,1808.8,1808.4,11.05916625]
[1745632826642,0.7867,1808.8,1808.4,5.52956783]
[1745632826845,0.7867,1808.8,1808.4,6.0825336]
[1745632827245,6.3154388,1808.8,1808.4,0.55295678]
[1745632827448,5.52891416,1808.7,1808.4,0.55295678]
[1745632828148,0.7867,1808.8,1808.4,11.61211157]
[1745632828505,6.3152298,1808.8,1808.4,6.08250803]
[1745632828832,5.52914913,1808.6,1808.2,5.53018745]
[1745632829038,0.7867,1808.8,1808.1,0.7778]
[1745632829345,6.32279761,1808.4,1808.0,5.5308184]
[1745632829545,4.762,1808.3,1808.0,5.5308184]
[1745632829747,6.32717153,1808.2,1807.7,5.53163748]
[1745632829956,6.32734614,1808.2,1807.7,5.53163748]
[1745632830155,5.53071928,1808.1,1807.6,5.82002915]
[1745632830353,5.53066755,1808.1,1807.6,5.82002915]
[1745632830561,5.53111366,1808.0,1807.6,5.82007505]
[1745632830871,0.7968,1807.8,1807.7,0.58200751]
[1745632831045,0.7968,1807.8,1807.6,0.2880748]
[1745632832292,0.7968,1807.8,1807.6,5.82024348]